fUSD/lending_fUSD_20240521
["ID","MTS","AMOUNT","RATE_DAILY","PERIOD"]
[327676147,1716307844030,-770.23,0.00032876,6]
[327676150,1716307844040,-500.0,0.00032876,6]
[327676152,1716307844049,-902.57,0.00032876,6]
[327676155,1716307844060,-500.0,0.00032876,6]
[327676158,1716307844070,-500.0,0.00032876,6]
[327676161,1716307844079,-728.8,0.00032876,6]
[327676163,1716307844088,-262.58182978,0.00032876,2]
[327676165,1716307844098,-500.0,0.00032876,6]
[327676167,1716307844107,-500.0,0.00032876,6]
[327676168,1716307844117,-1719.82,0.00032876,6]
[327676170,1716307844127,-656.17,0.00032876,6]
[327676172,1716307844136,-587.12400618,0.00032876,6]
[327676173,1716307844146,-500.0,0.00032876,6]
[327676174,1716307844155,-500.0,0.00032876,6]
[327676175,1716307844165,-500.0,0.00032876,6]
[327676176,1716307844174,-500.0,0.00032876,6]
[327676177,1716307844184,-617.46662701,0.00032876,6]
[327676178,1716307844666,-253.10572748,0.00032871,2]
[327676179,1716307844676,-97.41337299,0.00032876,6]
[327676180,1716307844686,-1094.11546757,0.00032876,6]
[327676181,1716307844698,-335.843,0.00032876,6]
[327676182,1716307844714,-100.02153243,0.00032876,6]
[327676183,1716307844724,-352.06889088,0.00032876,6]
[327676184,1716307844744,-147.93110912,0.00032876,6]
[327676185,1716307844753,-500.0,0.00032876,6]
[327676186,1716307844763,-984.82,0.00032876,6]
[327676187,1716307844772,-510.63878329,0.00032876,6]
[327676188,1716307844782,-1075.91,0.00032876,6]
[327676189,1716307844792,-391.273579,0.00032876,6]
[327676190,1716307844802,-500.0,0.00032876,6]
[327676191,1716307844812,-500.0,0.00032876,6]
[327676192,1716307844822,-500.0,0.00032876,6]
[327676193,1716307844831,-18.24531702,0.00032876,7]
[327676194,1716307845039,-132.75468298,0.00032876,7]
[327676195,1716307845049,-500.0,0.00032876,6]
[327676196,1716307845059,-565.98,0.00032876,6]
[327676197,1716307845072,-500.0,0.00032876,6]
[327676198,1716307845082,-610.2,0.00032876,6]
[327676199,1716307845091,-500.0,0.00032876,6]
[327676200,1716307845100,-151.0,0.00032876,7]
[327676201,1716307845110,-500.0,0.00032876,6]
[327676202,1716307845119,-500.0,0.00032876,6]
[327676203,1716307845129,-500.0,0.00032876,6]
[327676204,1716307845138,-500.0,0.00032876,6]
[327676205,1716307845147,-500.0,0.00032876,6]
[327676206,1716307845156,-1119.43,0.00032876,6]
[327676207,1716307845166,-762.37,0.00032876,6]
[327676208,1716307845175,-500.0,0.00032876,6]
[327676209,1716307845184,-500.0,0.00032876,6]
[327676210,1716307845193,-1.43087259,0.00032876,6]
[327676211,1716307845205,-508.23355521,0.00032876,6]
[327676212,1716307845215,-500.0,0.00032876,6]
[327676213,1716307845223,-500.0,0.00032876,6]
[327676214,1716307845234,-500.0,0.00032876,6]
[327676215,1716307845243,-585.46283968,0.00032876,6]
[327676216,1716307845252,-1792.44,0.00032876,6]
[327676217,1716307845261,-500.0,0.00032876,6]
[327676218,1716307845270,-290.69000594,0.00032876,6]
[327676219,1716307845279,-500.0,0.00032876,6]
[327676220,1716307845288,-500.0,0.00032876,6]
[327676221,1716307845297,-932.82,0.00032876,6]
[327676222,1716307845306,-500.0,0.00032876,6]
[327676223,1716307845315,-500.0,0.00032876,6]
[327676224,1716307845324,-500.0,0.00032876,6]
[327676225,1716307845333,-526.51454224,0.00032876,6]
[327676226,1716307845342,-647.82,0.00032876,6]
[327676227,1716307845352,-500.0,0.00032876,6]
[327676228,1716307845361,-1190.96,0.00032876,6]
[327676229,1716307845370,-372.11926418,0.00032876,6]
[327676230,1716307845379,-500.0,0.00032876,6]
[327676231,1716307845388,-500.0,0.00032876,6]
[327676232,1716307845397,-688.19,0.00032876,6]
[327676233,1716307845406,-500.0,0.00032876,6]
[327676234,1716307845416,-500.0,0.00032876,6]
[327676235,1716307845425,-694.43,0.00032876,6]
[327676236,1716307845434,-538.23995772,0.00032876,6]
[327676237,1716307845444,-500.0,0.00032876,6]
[327676238,1716307845454,-500.0,0.00032876,6]
[327676239,1716307845463,-500.0,0.00032876,6]
[327676240,1716307845472,-500.0,0.00032876,6]
[327676241,1716307845483,-1976.78,0.00032876,6]
[327676242,1716307845493,-500.0,0.00032876,6]
[327676243,1716307845502,-531.08,0.00032876,6]
[327676244,1716307845512,-825.16,0.00032876,6]
[327676245,1716307845521,-633.61,0.00032876,6]
[327676246,1716307845530,-500.0,0.00032876,6]
[327676247,1716307845540,-151.0,0.00032876,7]
[327676248,1716307845549,-549.74,0.00032876,6]
[327676249,1716307845558,-500.0,0.00032876,6]
[327676250,1716307845569,-500.0,0.00032876,6]
[327676251,1716307845578,-500.0,0.00032876,6]
[327676252,1716307845587,-1093.43,0.00032876,6]
[327676253,1716307845597,-500.0,0.00032876,6]
[327676254,1716307845606,-500.0,0.00032876,6]
[327676255,1716307845616,-151.0,0.00032876,7]
[327676256,1716307845625,-756.47,0.00032876,6]
[327676257,1716307845634,-784.06,0.00032876,6]
[327676258,1716307845643,-660.01,0.00032876,6]
[327676259,1716307845653,-633.3,0.00032876,6]
[327676260,1716307845662,-687.0,0.00032876,6]
[327676261,1716307845671,-151.0,0.00032876,7]
[327676262,1716307845741,-1289.37,0.00032876,6]
[327676263,1716307845750,-755.15,0.00032876,6]
[327676264,1716307845759,-518.97328769,0.00032876,6]
[327676265,1716307845768,-696.6,0.00032876,6]
[327676266,1716307845777,-549.88302686,0.00032876,6]
[327676267,1716307845786,-972.67,0.00032876,6]
[327676268,1716307845796,-500.0,0.00032876,6]
[327676269,1716307845805,-500.0,0.00032876,6]
[327676270,1716307845814,-1562.43,0.00032876,6]
[327676271,1716307845823,-753.92,0.00032876,6]
[327676272,1716307845832,-500.0,0.00032876,6]
[327676273,1716307845841,-500.0,0.00032876,6]
[327676274,1716307845851,-500.0,0.00032876,6]
[327676275,1716307845860,-500.0,0.00032876,6]
[327676276,1716307845869,-802.44,0.00032876,6]
[327676277,1716307845878,-681.7,0.00032876,6]
[327676278,1716307845888,-516.67670193,0.00032876,6]
[327676279,1716307845897,-1229.21,0.00032876,6]
[327676280,1716307845906,-717.98,0.00032876,6]
[327676281,1716307845916,-500.0,0.00032876,6]
[327676282,1716307845925,-743.13,0.00032876,6]
[327676283,1716307845935,-927.81,0.00032876,6]
[327676284,1716307845944,-521.00104193,0.00032876,6]
[327676286,1716307845954,-500.0,0.00032876,6]
[327676288,1716307845963,-517.9441158,0.00032876,6]
[327676289,1716307845972,-310.56521919,0.00032876,6]
[327676290,1716307845989,-397.74701043,0.00032876,6]
[327676291,1716307845998,-151.0,0.00032876,7]
[327676292,1716307846008,-500.0,0.00032876,6]
[327676294,1716307846017,-820.01,0.00032876,6]
[327676295,1716307846026,-713.52,0.00032876,6]
[327676298,1716307846035,-500.0,0.00032876,6]
[327676300,1716307846045,-500.0,0.00032876,6]
[327676302,1716307846057,-388.75403154,0.00032876,6]
[327676303,1716307846067,-1125.13,0.00032876,6]
[327676304,1716307846076,-500.0,0.00032876,6]
[327676305,1716307846086,-1253.36,0.00032876,6]
[327676306,1716307846095,-500.0,0.00032876,6]
[327676308,1716307846104,-972.91,0.00032876,6]
[327676309,1716307846113,-601.14,0.00032876,6]
[327676310,1716307846122,-915.23,0.00032876,6]
[327676311,1716307846131,-500.0,0.00032876,6]
[327676312,1716307846140,-500.0,0.00032876,6]
[327676314,1716307846152,-500.0,0.00032876,6]
[327676316,1716307846161,-788.95,0.00032876,6]
[327676318,1716307846171,-500.0,0.00032876,6]
[327676320,1716307846180,-500.0,0.00032876,6]
[327676322,1716307846189,-721.31,0.00032876,6]
[327676324,1716307846197,-500.0,0.00032876,6]
[327676325,1716307846206,-500.0,0.00032876,6]
[327676327,1716307846215,-500.0,0.00032876,6]
[327676329,1716307846225,-617.15,0.00032876,6]
[327676331,1716307846238,-644.77,0.00032876,6]
[327676332,1716307846247,-500.0,0.00032876,6]
[327676333,1716307846256,-500.0,0.00032876,6]
[327676334,1716307846265,-500.0,0.00032876,6]
[327676335,1716307846275,-1718.55,0.00032876,6]
[327676337,1716307846284,-500.0,0.00032876,6]
[327676339,1716307846294,-604.8,0.00032876,6]
[327676340,1716307846302,-1267.07,0.00032876,6]
[327676342,1716307846312,-500.0,0.00032876,6]
[327676344,1716307846322,-500.0,0.00032876,6]
[327676346,1716307846332,-500.0,0.00032876,6]
[327676348,1716307846341,-1574.45,0.00032876,6]
[327676350,1716307846351,-508.26768983,0.00032876,6]
[327676353,1716307846360,-500.0,0.00032876,6]
[327676354,1716307846369,-880.73,0.00032876,6]
[327676356,1716307846379,-525.96,0.00032876,6]
[327676358,1716307846388,-1060.42,0.00032876,6]
[327676360,1716307846398,-524.84593256,0.00032876,6]
[327676361,1716307846408,-670.09,0.00032876,6]
[327676362,1716307846418,-500.0,0.00032876,6]
[327676363,1716307846428,-510.78853452,0.00032876,6]
[327676364,1716307846437,-500.0,0.00032876,6]
[327676365,1716307846446,-500.0,0.00032876,6]
[327676366,1716307846455,-1086.43,0.00032876,6]
[327676367,1716307846464,-525.27235094,0.00032876,6]
[327676368,1716307846474,-500.0,0.00032876,6]
[327676369,1716307846487,-500.0,0.00032876,6]
[327676370,1716307846497,-500.0,0.00032876,6]
[327676371,1716307846506,-500.0,0.00032876,6]
[327676372,1716307846516,-547.18,0.00032876,6]
[327676373,1716307846526,-500.0,0.00032876,6]
[327676374,1716307846535,-1083.04,0.00032876,6]
[327676375,1716307846544,-500.0,0.00032876,6]
[327676376,1716307846554,-500.0,0.00032876,6]
[327676377,1716307846563,-523.04392828,0.00032876,6]
[327676379,1716307846573,-4865.04,0.00032876,6]
[327676381,1716307846582,-713.36,0.00032876,6]
[327676383,1716307846592,-554.29,0.00032876,6]
[327676384,1716307846601,-500.0,0.00032876,6]
[327676385,1716307846611,-500.0,0.00032876,6]
[327676386,1716307846620,-502.96991857,0.00032876,6]
[327676387,1716307846630,-500.0,0.00032876,6]
[327676389,1716307846639,-1881.31,0.00032876,6]
[327676391,1716307846649,-500.0,0.00032876,6]
[327676392,1716307846657,-1245.42,0.00032876,6]
[327676394,1716307846666,-522.50312506,0.00032876,6]
[327676396,1716307846676,-1509.64,0.00032876,6]
[327676398,1716307846686,-500.0,0.00032876,6]
[327676400,1716307846695,-500.0,0.00032876,6]
[327676402,1716307846705,-969.88,0.00032876,6]
[327676404,1716307846714,-500.0,0.00032876,6]
[327676406,1716307846723,-969.93,0.00032876,6]
[327676408,1716307846736,-500.0,0.00032876,6]
[327676411,1716307846746,-500.0,0.00032876,6]
[327676413,1716307846755,-500.0,0.00032876,6]
[327676415,1716307846764,-638.90808859,0.00032876,6]
[327676416,1716307846773,-500.0,0.00032876,6]
[327676418,1716307846782,-500.0,0.00032876,6]
[327676420,1716307846791,-500.0,0.00032876,6]
[327676422,1716307846800,-500.0,0.00032876,6]
[327676423,1716307846809,-500.0,0.00032876,6]
[327676424,1716307846819,-500.0,0.00032876,6]
[327676425,1716307846828,-500.0,0.00032876,6]
[327676426,1716307846838,-500.0,0.00032876,6]
[327676427,1716307846847,-500.0,0.00032876,6]
[327676428,1716307846856,-500.0,0.00032876,6]
[327676429,1716307846866,-508.92412029,0.00032876,6]
[327676430,1716307846875,-500.0,0.00032876,6]
[327676431,1716307846884,-991.45,0.00032876,6]
[327676432,1716307846893,-500.0,0.00032876,6]
[327676433,1716307846903,-1029.33,0.00032876,6]
[327676434,1716307846912,-500.0,0.00032876,6]
[327676435,1716307846922,-524.89639706,0.00032876,6]
[327676436,1716307846931,-500.0,0.00032876,6]
[327676437,1716307846941,-1165.63,0.00032876,6]
[327676438,1716307846951,-500.0,0.00032876,6]
[327676439,1716307846961,-1128.34,0.00032876,6]
[327676440,1716307846970,-150.0,0.00032876,6]
[327676441,1716307846981,-500.0,0.00032876,6]
[327676443,1716307846991,-500.0,0.00032876,6]
[327676444,1716307847004,-256.85776482,0.00032876,6]
[327676446,1716307847013,-1529.61,0.00032876,6]
[327676447,1716307847023,-1050.77,0.00032876,6]
[327676448,1716307847034,-1191.73,0.00032876,6]
[327676449,1716307847044,-500.0,0.00032876,6]
[327676450,1716307847053,-500.0,0.00032876,6]
[327676451,1716307847063,-151.0,0.00032876,7]
[327676452,1716307847075,-893.06,0.00032876,6]
[327676453,1716307847085,-1213.97,0.00032876,6]
[327676454,1716307847095,-583.88130043,0.00032876,6]
[327676455,1716307847105,-1111.22,0.00032876,6]
[327676456,1716307847114,-508.21970139,0.00032876,6]
[327676457,1716307847124,-500.0,0.00032876,6]
[327676458,1716307847133,-500.0,0.00032876,6]
[327676459,1716307847143,-151.0,0.00032876,7]
[327676460,1716307847152,-720.56,0.00032876,6]
[327676461,1716307847162,-513.05119719,0.00032876,6]
[327676462,1716307847172,-500.0,0.00032876,6]
[327676463,1716307847181,-500.0,0.00032876,6]
[327676464,1716307847191,-665.11,0.00032876,6]
[327676465,1716307847201,-500.0,0.00032876,6]
[327676466,1716307847211,-500.0,0.00032876,6]
[327676467,1716307847220,-500.0,0.00032876,6]
[327676468,1716307847232,-59486.03,0.00032876,6]
[327676469,1716307847241,-500.0,0.00032876,6]
[327676470,1716307847250,-549.91936003,0.00032876,6]
[327676471,1716307847259,-1260.58,0.00032876,6]
[327676472,1716307847269,-500.0,0.00032876,6]
[327676473,1716307847278,-500.0,0.00032876,6]
[327676474,1716307847288,-500.0,0.00032876,6]
[327676475,1716307847297,-689.62,0.00032876,6]
[327676476,1716307847306,-1696.62,0.00032876,6]
[327676477,1716307847315,-500.0,0.00032876,6]
[327676478,1716307847325,-821.28,0.00032876,6]
[327676479,1716307847334,-853.56,0.00032876,6]
[327676480,1716307847343,-604.02642709,0.00032876,6]
[327676481,1716307847352,-500.0,0.00032876,6]
[327676482,1716307847362,-2252.66,0.00032876,6]
[327676483,1716307847371,-151.0,0.00032876,7]
[327676484,1716307847380,-500.0,0.00032876,6]
[327676485,1716307847389,-500.0,0.00032876,6]
[327676486,1716307847398,-580.73,0.00032876,6]
[327676487,1716307847407,-500.0,0.00032876,6]
[327676488,1716307847416,-151.0,0.00032876,7]
[327676489,1716307847425,-500.0,0.00032876,6]
[327676490,1716307847435,-500.0,0.00032876,6]
[327676491,1716307847444,-527.55321303,0.00032876,6]
[327676492,1716307847453,-922.2,0.00032876,6]
[327676493,1716307847462,-535.01,0.00032876,6]
[327676494,1716307847471,-1333.26,0.00032876,6]
[327676495,1716307847481,-15218.07,0.00032876,6]
[327676496,1716307847490,-599.61,0.00032876,6]
[327676497,1716307847500,-1018.31,0.00032876,6]
[327676498,1716307847510,-296.882742,0.00032876,7]
[327676499,1716307847519,-3365.26,0.00032876,6]
[327676500,1716307847528,-4309.84,0.00032876,6]
[327676501,1716307847537,-500.0,0.00032876,6]
[327676502,1716307847547,-500.0,0.00032876,6]
[327676503,1716307847556,-500.0,0.00032876,6]
[327676504,1716307847566,-500.0,0.00032876,6]
[327676505,1716307847575,-151.0,0.00032876,7]
[327676506,1716307847585,-757.54,0.00032876,6]
[327676507,1716307847595,-6046.71,0.00032876,6]
[327676508,1716307847604,-762.24,0.00032876,6]
[327676509,1716307847613,-8371.04,0.00032876,6]
[327676510,1716307847622,-500.0,0.00032876,6]
[327676511,1716307847631,-1150.29,0.00032876,6]
[327676512,1716307847641,-500.0,0.00032876,6]
[327676513,1716307847650,-552.03,0.00032876,6]
[327676514,1716307847660,-151.0,0.00032876,7]
[327676515,1716307847670,-500.0,0.00032876,6]
[327676516,1716307847679,-500.0,0.00032876,6]
[327676517,1716307847689,-1342.12,0.00032876,6]
[327676518,1716307847698,-500.0,0.00032876,6]
[327676519,1716307847708,-500.0,0.00032876,6]
[327676520,1716307847717,-500.0,0.00032876,6]
[327676521,1716307847729,-1749.95,0.00032876,6]
[327676522,1716307847739,-500.0,0.00032876,6]
[327676523,1716307847749,-2667.94,0.00032876,6]
[327676524,1716307847758,-2134.82,0.00032876,6]
[327676525,1716307847767,-4647.06,0.00032876,6]
[327676526,1716307847776,-500.0,0.00032876,6]
[327676527,1716307847786,-936.12,0.00032876,6]
[327676528,1716307847795,-533.46,0.00032876,6]
[327676529,1716307847804,-500.0,0.00032876,6]
[327676530,1716307847813,-500.0,0.00032876,6]
[327676531,1716307847822,-500.0,0.00032876,6]
[327676532,1716307847832,-587.88993037,0.00032876,6]
[327676533,1716307847841,-598.3,0.00032876,6]
[327676534,1716307847852,-500.0,0.00032876,6]
[327676535,1716307847861,-500.0,0.00032876,6]
[327676536,1716307847870,-713.38,0.00032876,6]
[327676537,1716307847880,-2114.17,0.00032876,6]
[327676538,1716307847889,-500.0,0.00032876,6]
[327676539,1716307847898,-500.0,0.00032876,6]
[327676540,1716307847908,-1181.39,0.00032876,6]
[327676541,1716307847917,-500.0,0.00032876,6]
[327676542,1716307847926,-708.16,0.00032876,6]
[327676543,1716307847935,-598.16,0.00032876,6]
[327676544,1716307847944,-500.0,0.00032876,6]
[327676545,1716307847954,-836.96,0.00032876,6]
[327676546,1716307847963,-500.0,0.00032876,6]
[327676547,1716307847973,-895.0,0.00032876,6]
[327676548,1716307847987,-2117.34,0.00032876,6]
[327676549,1716307847998,-500.0,0.00032876,6]
[327676550,1716307848007,-1663.61,0.00032876,6]
[327676551,1716307848016,-1383.09,0.00032876,6]
[327676552,1716307848026,-1968.12,0.00032876,6]
[327676553,1716307848036,-1467.83,0.00032876,6]
[327676554,1716307848045,-3167.21,0.00032876,6]
[327676555,1716307848056,-974.95,0.00032876,6]
[327676556,1716307848066,-1245.47,0.00032876,6]
[327676557,1716307848076,-500.0,0.00032876,6]
[327676558,1716307848085,-500.0,0.00032876,6]
[327676559,1716307848095,-806.29,0.00032876,6]
[327676560,1716307848104,-512.85726535,0.00032876,6]
[327676561,1716307848113,-1462.14,0.00032876,6]
[327676562,1716307848122,-1880.36,0.00032876,6]
[327676563,1716307848131,-2924.64,0.00032876,6]
[327676564,1716307848140,-2053.17,0.00032876,6]
[327676565,1716307848150,-500.0,0.00032876,6]
[327676566,1716307848159,-3553.72,0.00032876,6]
[327676567,1716307848168,-500.0,0.00032876,6]
[327676568,1716307848177,-1414.55,0.00032876,6]
[327676569,1716307848187,-1608.07,0.00032876,6]
[327676570,1716307848196,-500.0,0.00032876,6]
[327676571,1716307848205,-1108.62,0.00032876,6]
[327676572,1716307848214,-2154.15,0.00032876,6]
[327676573,1716307848223,-500.0,0.00032876,6]
[327676574,1716307848237,-500.0,0.00032876,6]
[327676575,1716307848246,-500.0,0.00032876,6]
[327676576,1716307848255,-500.0,0.00032876,6]
[327676577,1716307848264,-1588.97,0.00032876,6]
[327676578,1716307848273,-181.27,0.00032876,6]
[327676579,1716307848282,-500.0,0.00032876,6]
[327676580,1716307848291,-774.89,0.00032876,6]
[327676581,1716307848301,-500.0,0.00032876,6]
[327676582,1716307848310,-873.65,0.00032876,6]
[327676583,1716307848320,-960.58,0.00032876,6]
[327676584,1716307848329,-500.0,0.00032876,6]
[327676585,1716307848338,-500.0,0.00032876,6]
[327676586,1716307848347,-500.0,0.00032876,6]
[327676587,1716307848356,-1038.36,0.00032876,6]
[327676588,1716307848365,-500.0,0.00032876,6]
[327676589,1716307848375,-500.0,0.00032876,6]
[327676590,1716307848384,-304.73,0.00032876,6]
[327676591,1716307848393,-1449.81,0.00032876,6]
[327676592,1716307848404,-151.0,0.00032876,7]
[327676593,1716307848414,-500.0,0.00032876,6]
[327676594,1716307848424,-514.26,0.00032876,6]
[327676595,1716307848433,-500.0,0.00032876,6]
[327676596,1716307848442,-513.83,0.00032876,6]
[327676597,1716307848451,-2908.96,0.00032876,6]
[327676598,1716307848460,-500.0,0.00032876,6]
[327676599,1716307848469,-552.13,0.00032876,6]
[327676600,1716307848481,-500.0,0.00032876,6]
[327676601,1716307848491,-1180.87,0.00032876,6]
[327676602,1716307848500,-500.0,0.00032876,6]
[327676603,1716307848509,-151.0,0.00032876,7]
[327676604,1716307848518,-513.27,0.00032876,6]
[327676605,1716307848528,-335.45888509,0.00032876,6]
[327676606,1716307848538,-500.0,0.00032876,6]
[327676607,1716307848548,-1561.27,0.00032876,6]
[327676608,1716307848557,-1220.59,0.00032876,6]
[327676609,1716307848566,-1754.91,0.00032876,6]
[327676610,1716307848575,-500.0,0.00032876,6]
[327676611,1716307848585,-1113.97,0.00032876,6]
[327676612,1716307848594,-151.0,0.00032876,7]
[327676613,1716307848604,-500.0,0.00032876,6]
[327676614,1716307848613,-500.0,0.00032876,6]
[327676615,1716307848622,-1060.36,0.00032876,6]
[327676616,1716307848631,-506.77,0.00032876,6]
[327676617,1716307848641,-41143.41,0.00032876,6]
[327676618,1716307848651,-531.05626515,0.00032876,6]
[327676619,1716307848660,-784.52,0.00032876,6]
[327676620,1716307848669,-3249.1,0.00032876,6]
[327676621,1716307848678,-1681.52,0.00032876,6]
[327676622,1716307848687,-500.0,0.00032876,6]
[327676623,1716307848697,-531.3,0.00032876,6]
[327676624,1716307848707,-500.0,0.00032876,6]
[327676625,1716307848716,-500.0,0.00032876,6]
[327676626,1716307848725,-500.0,0.00032876,6]
[327676627,1716307848737,-500.0,0.00032876,6]
[327676628,1716307848746,-500.0,0.00032876,6]
[327676629,1716307848755,-500.0,0.00032876,6]
[327676630,1716307848764,-500.0,0.00032876,6]
[327676631,1716307848774,-5110.3,0.00032876,6]
[327676632,1716307848784,-500.0,0.00032876,6]
[327676633,1716307848793,-500.0,0.00032876,6]
[327676634,1716307848803,-257.72,0.00032876,6]
[327676635,1716307848812,-500.0,0.00032876,6]
[327676636,1716307848821,-725.14,0.00032876,6]
[327676637,1716307848831,-151.0,0.00032876,7]
[327676638,1716307848841,-1548.52,0.00032876,6]
[327676639,1716307848850,-9588.1,0.00032876,6]
[327676640,1716307848859,-410.005059,0.00032876,7]
[327676641,1716307848869,-859.57,0.00032876,6]
[327676642,1716307848879,-500.0,0.00032876,6]
[327676643,1716307848888,-1633.69,0.00032876,6]
[327676644,1716307848898,-410.005059,0.00032876,7]
[327676645,1716307848908,-640.61,0.00032876,6]
[327676646,1716307848918,-1215.51,0.00032876,6]
[327676647,1716307848927,-6508.52,0.00032876,6]
[327676648,1716307848936,-500.0,0.00032876,6]
[327676649,1716307848946,-500.0,0.00032876,6]
[327676650,1716307848955,-500.0,0.00032876,6]
[327676651,1716307848964,-151.0,0.00032876,7]
[327676652,1716307848974,-500.0,0.00032876,6]
[327676653,1716307848992,-512.86,0.00032876,6]
[327676654,1716307849002,-500.0,0.00032876,6]
[327676655,1716307849012,-6102.77,0.00032876,6]
[327676656,1716307849021,-502.07,0.00032876,6]
[327676657,1716307849034,-533.02,0.00032876,6]
[327676658,1716307849043,-1588.49,0.00032876,6]
[327676659,1716307849053,-672.3,0.00032876,6]
[327676660,1716307849064,-500.0,0.00032876,6]
[327676661,1716307849073,-500.0,0.00032876,6]
[327676662,1716307849083,-1438.17,0.00032876,6]
[327676663,1716307849093,-1437.83,0.00032876,6]
[327676664,1716307849103,-500.0,0.00032876,6]
[327676665,1716307849112,-500.0,0.00032876,6]
[327676666,1716307849122,-20556.62,0.00032876,6]
[327676667,1716307849131,-500.0,0.00032876,6]
[327676668,1716307849141,-736.88,0.00032876,6]
[327676669,1716307849150,-500.0,0.00032876,2]
[327676670,1716307849160,-500.0,0.00032876,6]
[327676671,1716307849170,-1104.48,0.00032876,6]
[327676672,1716307849180,-500.0,0.00032876,6]
[327676673,1716307849189,-500.0,0.00032876,6]
[327676674,1716307849199,-500.0,0.00032876,6]
[327676675,1716307849209,-1351.81,0.00032876,6]
[327676676,1716307849219,-5152.08,0.00032876,6]
[327676677,1716307849230,-500.0,0.00032876,6]
[327676678,1716307849240,-500.0,0.00032876,6]
[327676679,1716307849250,-7003.98,0.00032876,6]
[327676680,1716307849260,-500.0,0.00032876,6]
[327676681,1716307849269,-2743.75,0.00032876,6]
[327676682,1716307849280,-500.0,0.00032876,6]
[327676683,1716307849289,-500.0,0.00032876,6]
[327676684,1716307849299,-1159.83,0.00032876,6]
[327676685,1716307849308,-514.31730391,0.00032876,6]
[327676686,1716307849318,-152.196773,0.00032876,7]
[327676687,1716307849327,-529.12890679,0.00032876,6]
[327676688,1716307849337,-710.48,0.00032876,6]
[327676689,1716307849346,-500.0,0.00032876,6]
[327676690,1716307849356,-571.48,0.00032876,6]
[327676691,1716307849365,-848.25,0.00032876,6]
[327676692,1716307849375,-2030.17,0.00032876,6]
[327676693,1716307849384,-500.0,0.00032876,6]
[327676694,1716307849395,-500.0,0.00032876,6]
[327676695,1716307849405,-500.0,0.00032876,6]
[327676696,1716307849415,-500.0,0.00032876,6]
[327676697,1716307849424,-500.0,0.00032876,6]
[327676698,1716307849434,-500.0,0.00032876,6]
[327676699,1716307849443,-629.73,0.00032876,6]
[327676700,1716307849453,-500.0,0.00032876,6]
[327676701,1716307849462,-540.63,0.00032876,6]
[327676702,1716307849472,-500.0,0.00032876,6]
[327676703,1716307849483,-1372.16,0.00032876,6]
[327676704,1716307849493,-500.0,0.00032876,6]
[327676705,1716307849503,-500.0,0.00032876,6]
[327676706,1716307849512,-3077.17,0.00032876,6]
[327676707,1716307849522,-500.0,0.00032876,6]
[327676708,1716307849532,-547.44,0.00032876,6]
[327676709,1716307849542,-2477.23,0.00032876,6]
[327676710,1716307849551,-500.0,0.00032876,6]
[327676711,1716307849561,-3133.96,0.00032876,6]